[Event "FIDE Chesscom Grand Swiss 2019"]
[Site "Douglas-Isle of Man"]
[Date "2019.10.15"]
[Round "6.1"]
[White "Howell, David W L"]
[Black "Akobian, Varuzhan"]
[Result "1-0"]
[ECO "E09"]
[WhiteElo "2694"]
[BlackElo "2625"]
[Annotator "RC"]
[PlyCount "70"]
[EventDate "2019.10.10"]
[EventType "swiss"]
[EventCountry "GBR"]
[SourceTitle "playchess.com"]
[Source "ChessBase"]
[SourceQuality "1"]
[TimeControl "40/6000+30:20/3000+30:900+30"]

1. c4 {[%emt 0:04:40]} e6 {[%emt 0:00:00]} 2. g3 {[%emt 0:00:53]} d5 {[%emt 0:00:08]} 3. Bg2 {[%emt 0:00:16]} Nf6 {[%emt 0:00:12]} 4. Nf3 {[%emt 0:00:32]} Be7 {[%emt 0:00:33]} 5. O-O {[%emt 0:01:46]} O-O {[%emt 0:02:44]} 6. d4 {[%emt 0:01:12]} Nbd7 {[%emt 0:00:15]} 7. Qc2 {[%emt 0:03:05]} c6 {[%emt 0:00:44]} 8. Nbd2 {[%emt 0:00:32]} b6 {[%emt 0:00:32]} 9. e4 {[%emt 0:00:08]} Bb7 {[%emt 0:05:17]} 10. e5 {[%emt 0:04:50]} Ne8 {[%emt 0:00:11]} 11. cxd5 {[%emt 0:00:14]} cxd5 {[%emt 0:00:14]} 12. Re1 {[%emt 0:00:14]} Rc8 {[%emt 0:10:45]} 13. Qd1 {[%emt 0:00:51]} Qc7 {[%emt 0:00:21]} 14. Nb1 {[%emt 0:01:27]} b5 {[%emt 0:28:58]} 15. Bf1 {[%emt 0:11:09]} b4 {[%emt 0:00:30]} 16. a3 {[%emt 0:19:45]} a5 {[%emt 0:08:36]} 17. axb4 {[%emt 0:01:42]} axb4 {[%emt 0:00:14]} 18. Bd3 {[%emt 0:06:15]} Qb6 {[%emt 0:02:01]} 19. Bf4 {[%emt 0:13:04]} Nc7 {[%emt 0:00:29]} 20. Nbd2 {[%emt 0:00:05]} Ra8 {[%emt 0:01:34]} 21. Rc1 {[%emt 0:01:07]} Rfc8 {[%emt 0:00:20]} 22. h4 {[%emt 0:00:42]} Ba6 {[%emt 0:00:45]} 23. Bb1 {[%emt 0:01:01]} Nb5 {[%emt 0:05:30]} 24. Nb3 {[%emt 0:02:16]} Rxc1 {[%emt 0:02:28]} 25. Bxc1 {[%emt 0:03:43]} Rc8 {[%emt 0:00:45]} 26. Ng5 {[%emt 0:10:43]} Nf8 {[%emt 0:14:21]} 27. Qh5 {[%emt 0:03:00]} Bxg5 {[%emt 0:00:44]} 28. Bxg5 {[%emt 0:00:50]} Nxd4 {[%emt 0:20:05]} 29. Be3 {[%emt 0:00:47]} Be2 {[%emt 0:03:34]} 30. Bxd4 {[%emt 0:01:23]} Qxd4 {[%emt 0:00:05]} 31. Qxe2 {[%emt 0:00:12]} Qb6 {[%emt 0:00:02]} 32. Qe3 {[%emt 0:02:26]} Qb8 {[%emt 0:00:24]} 33. h5 {[%emt 0:03:17]} Nd7 {[%emt 0:01:08]} 34. Kg2 {[%emt 0:01:28]} h6 {[%emt 0:01:54]} 35. Nd4 {[%emt 0:01:20]} Qa7 {[%emt 0:00:00]} 1-0

[Event "FIDE Chesscom Grand Swiss 2019"]
[Site "Douglas-Isle of Man"]
[Date "2019.10.15"]
[Round "6.2"]
[White "Volokitin, Andrei"]
[Black "Vallejo Pons, Francisco"]
[Result "1/2-1/2"]
[ECO "B67"]
[WhiteElo "2627"]
[BlackElo "2694"]
[Annotator "RC"]
[PlyCount "75"]
[EventDate "2019.10.10"]
[EventType "swiss"]
[EventCountry "GBR"]
[SourceTitle "playchess.com"]
[Source "ChessBase"]
[SourceQuality "1"]
[TimeControl "40/6000+30:20/3000+30:900+30"]

1. e4 {[%emt 0:00:00]} c5 {[%emt 0:00:00]} 2. Nf3 {[%emt 0:00:00]} d6 {[%emt 0:00:00]} 3. d4 {[%emt 0:00:00]} cxd4 {[%emt 0:00:00]} 4. Nxd4 {[%emt 0:00:03]} Nf6 {[%emt 0:00:00]} 5. Nc3 {[%emt 0:00:04]} Nc6 {[%emt 0:00:00]} 6. Bg5 {[%emt 0:00:30]} e6 {[%emt 0:00:07]} 7. Qd2 {[%emt 0:00:08]} a6 {[%emt 0:00:12]} 8. O-O-O {[%emt 0:00:13]} Bd7 {[%emt 0:00:04]} 9. f4 {[%emt 0:00:46]} b5 {[%emt 0:00:49]} 10. Bxf6 {[%emt 0:01:11]} gxf6 {[%emt 0:00:21]} 11. Kb1 {[%emt 0:04:35]} Qb6 {[%emt 0:02:03]} 12. Nxc6 {[%emt 0:03:01]} Bxc6 {[%emt 0:00:20]} 13. Qe1 {[%emt 0:11:00]} Be7 {[%emt 0:06:16]} 14. Bd3 {[%emt 0:02:25]} a5 {[%emt 0:10:26]} 15. f5 {[%emt 0:02:43]} a4 {[%emt 0:06:55]} 16. a3 {[%emt 0:15:11]} b4 {[%emt 0:04:14]} 17. axb4 {[%emt 0:00:18]} Qxb4 {[%emt 0:06:59]} 18. Nb5 {[%emt 0:02:01]} Qxe1 {[%emt 0:04:44]} 19. Rhxe1 {[%emt 0:00:10]} Ra5 {[%emt 0:19:46]} 20. c4 {[%emt 0:10:32]} Rg8 {[%emt 0:03:40]} 21. g3 {[%emt 0:11:02]} Kf8 {[%emt 0:00:08]} 22. Bf1 {[%emt 0:13:22]} Rg4 {[%emt 0:20:14]} 23. fxe6 {[%emt 0:16:05]} fxe6 {[%emt 0:06:46]} 24. Bh3 {[%emt 0:02:58]} Rxe4 {[%emt 0:02:28]} 25. Bxe6 {[%emt 0:00:36]} Rxe1 {[%emt 0:05:19]} 26. Rxe1 {[%emt 0:00:03]} Bxb5 {[%emt 0:00:15]} 27. cxb5 {[%emt 0:00:04]} Rxb5 {[%emt 0:00:09]} 28. Ka2 {[%emt 0:03:39]} Re5 {[%emt 0:02:26]} 29. Rxe5 {[%emt 0:00:04]} dxe5 {[%emt 0:00:10]} 30. Bd7 {[%emt 0:00:23]} Kg7 {[%emt 0:07:40]} 31. Bxa4 {[%emt 0:00:56]} f5 {[%emt 0:00:02]} 32. Kb3 {[%emt 0:00:32]} Bc5 {[%emt 0:00:24]} 33. Kc4 {[%emt 0:00:20]} Bg1 {[%emt 0:00:08]} 34. h3 {[%emt 0:00:06]} h5 {[%emt 0:01:09]} 35. Bd7 {[%emt 0:02:22]} Kf6 {[%emt 0:00:27]} 36. g4 {[%emt 0:00:47]} fxg4 {[%emt 0:01:53]} 37. hxg4 {[%emt 0:00:02]} h4 {[%emt 0:01:07]} 38. Kd5 {[%emt 0:00:28]} 1/2-1/2

[Event "FIDE Chesscom Grand Swiss 2019"]
[Site "Douglas-Isle of Man"]
[Date "2019.10.15"]
[Round "6.3"]
[White "Huschenbeth, Niclas"]
[Black "Grandelius, Nils"]
[Result "0-1"]
[ECO "C78"]
[WhiteElo "2624"]
[BlackElo "2691"]
[Annotator "ChessBase"]
[PlyCount "214"]
[EventDate "2019.10.10"]
[EventType "swiss"]
[EventCountry "GBR"]
[SourceTitle "playchess.com"]
[Source "ChessBase"]
[SourceQuality "1"]
[TimeControl "40/6000+30:20/3000+30:900+30"]

1. e4 {[%emt 0:00:00]} e5 {[%emt 0:00:27]} 2. Nf3 {[%emt 0:00:00]} Nc6 {[%emt 0:00:07]} 3. Bb5 {[%emt 0:00:00]} a6 {[%emt 0:00:28]} 4. Ba4 {[%emt 0:00:00]} Nf6 {[%emt 0:00:04]} 5. O-O {[%emt 0:00:00]} Bc5 {[%emt 0:02:39]} 6. c3 {[%emt 0:00:07]} b5 {[%emt 0:00:46]} 7. Bb3 {[%emt 0:00:04]} d6 {[%emt 0:00:25]} 8. a4 {[%emt 0:00:27]} b4 {[%emt 0:01:18]} 9. d4 {[%emt 0:13:09]} Ba7 {[%emt 0:01:07]} 10. h3 {[%emt 0:04:34]} O-O {[%emt 0:04:52]} 11. Be3 {[%emt 0:33:12]} bxc3 {[%emt 0:01:07]} 12. bxc3 {[%emt 0:00:05]} exd4 {[%emt 0:02:23]} 13. cxd4 {[%emt 0:00:06]} Nxe4 {[%emt 0:00:26]} 14. Bd5 {[%emt 0:00:36]} Qe8 {[%emt 0:00:30]} 15. Qc2 {[%emt 0:00:37]} Nb4 {[%emt 0:00:15]} 16. Qxe4 {[%emt 0:00:02]} Qxe4 {[%emt 0:00:07]} 17. Bxe4 {[%emt 0:00:02]} d5 {[%emt 0:00:12]} 18. Bxh7+ {[%emt 0:04:45]} Kxh7 {[%emt 0:00:08]} 19. Rc1 {[%emt 0:01:12]} Bf5 {[%emt 0:29:02]} 20. g4 {[%emt 0:06:49]} Bg6 {[%emt 0:01:49]} 21. Ne5 {[%emt 0:01:37]} Bc2 {[%emt 0:23:24]} 22. a5 {[%emt 0:09:52]} f6 {[%emt 0:09:32]} 23. Nf3 {[%emt 0:00:03]} Bg6 {[%emt 0:02:32]} 24. Nh4 {[%emt 0:08:19]} Bd3 {[%emt 0:12:20]} 25. Ra3 {[%emt 0:03:28]} Rab8 {[%emt 0:02:33]} 26. Nd2 {[%emt 0:02:45]} Rfc8 {[%emt 0:04:17]} 27. Ng2 {[%emt 0:09:42]} Kg8 {[%emt 0:01:25]} 28. Nf4 {[%emt 0:01:57]} Bh7 {[%emt 0:00:02]} 29. Rb3 {[%emt 0:03:02]} c6 {[%emt 0:00:22]} 30. h4 {[%emt 0:01:39]} Kf7 {[%emt 0:01:38]} 31. Nf3 {[%emt 0:01:53]} Na2 {[%emt 0:01:51]} 32. Rxb8 {[%emt 0:00:13]} Bxb8 {[%emt 0:00:01]} 33. Ra1 {[%emt 0:01:00]} Nc3 {[%emt 0:01:10]} 34. Rc1 {[%emt 0:00:13]} Bxf4 {[%emt 0:02:19]} 35. Rxc3 {[%emt 0:00:04]} Bd6 {[%emt 0:00:04]} 36. Rb3 {[%emt 0:03:31]} Rb8 {[%emt 0:00:18]} 37. Rxb8 {[%emt 0:00:27]} Bxb8 {[%emt 0:00:01]} 38. Kf1 {[%emt 0:01:33]} Bc7 {[%emt 0:02:01]} 39. Bd2 {[%emt 0:00:04]} Bd6 {[%emt 0:00:05]} 40. Ke2 {[%emt 0:00:59]} Ke6 {[%emt 0:05:01]} 41. Bc3 {[%emt 0:06:13]} Bb1 {[%emt 0:06:10]} 42. Ne1 {[%emt 0:10:30]} f5 {[%emt 0:16:28]} 43. f3 {[%emt 0:00:40]} g6 {[%emt 0:08:13]} 44. Nd3 {[%emt 0:07:09]} Bxd3+ {[%emt 0:03:27]} 45. Kxd3 {[%emt 0:00:04]} Bg3 {[%emt 0:00:06]} 46. h5 {[%emt 0:03:43]} gxh5 {[%emt 0:00:06]} 47. gxh5 {[%emt 0:00:04]} Kf6 {[%emt 0:00:49]} 48. Bd2 {[%emt 0:00:46]} Bc7 {[%emt 0:00:56]} 49. Ke2 {[%emt 0:06:02]} f4 {[%emt 0:02:03]} 50. Kd3 {[%emt 0:00:25]} Bd6 {[%emt 0:02:13]} 51. Be1 {[%emt 0:00:43]} Kg5 {[%emt 0:00:04]} 52. Ke2 {[%emt 0:00:32]} Kxh5 {[%emt 0:00:14]} 53. Kd3 {[%emt 0:00:21]} Kg5 {[%emt 0:00:39]} 54. Kc2 {[%emt 0:02:16]} c5 {[%emt 0:03:10]} 55. dxc5 {[%emt 0:00:03]} Bxc5 {[%emt 0:00:06]} 56. Kd3 {[%emt 0:01:21]} Be3 {[%emt 0:00:09]} 57. Ke2 {[%emt 0:00:51]} Kf5 {[%emt 0:00:59]} 58. Kd3 {[%emt 0:00:38]} Ke5 {[%emt 0:00:31]} 59. Bh4 {[%emt 0:02:07]} Bc1 {[%emt 0:02:14]} 60. Bf2 {[%emt 0:05:31]} Bb2 {[%emt 0:03:48]} 61. Be1 {[%emt 0:17:57]} Kd6 {[%emt 0:16:48]} 62. Bd2 {[%emt 0:01:56]} Be5 {[%emt 0:00:14]} 63. Be1 {[%emt 0:01:27]} Kc6 {[%emt 0:01:07]} 64. Bb4 {[%emt 0:04:35]} Kb5 {[%emt 0:01:13]} 65. Bd2 {[%emt 0:00:00]} Ka4 {[%emt 0:00:00]} 66. Kc2 {[%emt 0:00:00]} Ka3 {[%emt 0:00:00]} 67. Be1 {[%emt 0:00:00]} Bd4 {[%emt 0:00:00]} 68. Kd3 {[%emt 0:00:00]} Be3 {[%emt 0:00:00]} 69. Bh4 {[%emt 0:00:00]} Kb4 {[%emt 0:00:00]} 70. Bd8 {[%emt 0:00:00]} Kb5 {[%emt 0:00:00]} 71. Bc7 {[%emt 0:00:00]} Kc6 {[%emt 0:00:00]} 72. Be5 {[%emt 0:00:00]} Kd7 {[%emt 0:00:00]} 73. Bb8 {[%emt 0:00:00]} Ke6 {[%emt 0:00:00]} 74. Bc7 {[%emt 0:00:00]} Bc1 {[%emt 0:00:00]} 75. Bb8 {[%emt 0:00:00]} Kd7 {[%emt 0:00:00]} 76. Be5 {[%emt 0:00:00]} Kc6 {[%emt 0:00:00]} 77. Kc2 {[%emt 0:00:00]} Be3 {[%emt 0:00:00]} 78. Kd3 {[%emt 0:00:00]} Kc5 {[%emt 0:00:00]} 79. Bb8 {[%emt 0:01:03]} Kb4 {[%emt 0:00:00]} 80. Bc7 {[%emt 0:00:02]} Kb5 {[%emt 0:00:00]} 81. Kc3 {[%emt 0:01:02]} Kc6 {[%emt 0:01:42]} 82. Be5 {[%emt 0:00:35]} Kd7 {[%emt 0:00:42]} 83. Kd3 {[%emt 0:00:06]} Ke6 {[%emt 0:00:03]} 84. Bc7 {[%emt 0:00:08]} Kf5 {[%emt 0:00:19]} 85. Bb6 {[%emt 0:00:33]} Bc1 {[%emt 0:00:04]} 86. Kd4 {[%emt 0:00:28]} Ke6 {[%emt 0:00:10]} 87. Bc7 {[%emt 0:01:30]} Bb2+ {[%emt 0:02:23]} 88. Kd3 {[%emt 0:01:46]} Be5 {[%emt 0:00:09]} 89. Bb6 {[%emt 0:01:18]} Bd6 {[%emt 0:02:40]} 90. Kd4 {[%emt 0:00:41]} Be5+ {[%emt 0:00:45]} 91. Kd3 {[%emt 0:00:04]} Kd6 {[%emt 0:00:21]} 92. Bf2 {[%emt 0:00:14]} Kc6 {[%emt 0:00:34]} 93. Be1 {[%emt 0:00:38]} Kb5 {[%emt 0:00:23]} 94. Bd2 {[%emt 0:00:08]} Bc7 {[%emt 0:01:00]} 95. Kd4 {[%emt 0:00:24]} Bxa5 {[%emt 0:00:07]} 96. Bxf4 {[%emt 0:00:05]} Kc6 {[%emt 0:00:04]} 97. Be5 {[%emt 0:01:24]} Bb4 {[%emt 0:01:35]} 98. f4 {[%emt 0:00:31]} Bc5+ {[%emt 0:00:28]} 99. Kd3 {[%emt 0:00:14]} Bd6 {[%emt 0:00:41]} 100. Kd4 {[%emt 0:06:29]} a5 {[%emt 0:00:23]} 101. Bf6 {[%emt 0:00:32]} Bxf4 {[%emt 0:00:21]} 102. Bd8 {[%emt 0:00:02]} Bd2 {[%emt 0:00:19]} 103. Kd3 {[%emt 0:00:07]} Bb4 {[%emt 0:00:05]} 104. Kd4 {[%emt 0:00:23]} a4 {[%emt 0:01:00]} 105. Kd3 {[%emt 0:01:23]} Kb5 {[%emt 0:01:06]} 106. Kd4 {[%emt 0:00:31]} a3 {[%emt 0:03:15]} 107. Kd3 {[%emt 0:00:33]} d4 {[%emt 0:01:08]} 0-1

[Event "FIDE Chesscom Grand Swiss 2019"]
[Site "Douglas-Isle of Man"]
[Date "2019.10.15"]
[Round "6.4"]
[White "Van Foreest, Jorden"]
[Black "Kamsky, Gata"]
[Result "1/2-1/2"]
[ECO "B31"]
[WhiteElo "2621"]
[BlackElo "2685"]
[Annotator "RC"]
[PlyCount "187"]
[EventDate "2019.10.10"]
[EventType "swiss"]
[EventCountry "GBR"]
[SourceTitle "playchess.com"]
[Source "ChessBase"]
[SourceQuality "1"]
[TimeControl "40/6000+30:20/3000+30:900+30"]

1. e4 {[%emt 0:00:00]} c5 {[%emt 0:00:00]} 2. Nf3 {[%emt 0:00:00]} Nc6 {[%emt 0:00:04]} 3. Bb5 {[%emt 0:00:00]} g6 {[%emt 0:00:08]} 4. Bxc6 {[%emt 0:00:14]} bxc6 {[%emt 0:00:07]} 5. O-O {[%emt 0:00:34]} Bg7 {[%emt 0:00:07]} 6. Re1 {[%emt 0:00:11]} Nh6 {[%emt 0:02:27]} 7. c3 {[%emt 0:00:34]} O-O {[%emt 0:01:36]} 8. d4 {[%emt 0:00:14]} cxd4 {[%emt 0:00:16]} 9. cxd4 {[%emt 0:00:08]} d5 {[%emt 0:03:21]} 10. e5 {[%emt 0:00:27]} f6 {[%emt 0:00:12]} 11. Qc2 {[%emt 0:00:08]} Qb6 {[%emt 0:18:06]} 12. Bxh6 {[%emt 0:01:22]} Bxh6 {[%emt 0:00:51]} 13. e6 {[%emt 0:00:04]} Rb8 {[%emt 0:03:48]} 14. b3 {[%emt 0:02:04]} Qc7 {[%emt 0:02:53]} 15. Nc3 {[%emt 0:03:05]} Qd6 {[%emt 0:00:08]} 16. Qe2 {[%emt 0:00:37]} c5 {[%emt 0:00:22]} 17. Rad1 {[%emt 0:04:26]} Bb7 {[%emt 0:03:29]} 18. Nb5 {[%emt 0:00:58]} Qb6 {[%emt 0:00:09]} 19. dxc5 {[%emt 0:00:02]} Qxc5 {[%emt 0:00:06]} 20. Nbd4 {[%emt 0:00:08]} Rbc8 {[%emt 0:09:07]} 21. h4 {[%emt 0:12:18]} Qa3 {[%emt 0:09:19]} 22. h5 {[%emt 0:15:59]} Ba6 {[%emt 0:01:42]} 23. Nb5 {[%emt 0:00:09]} Qc5 {[%emt 0:14:00]} 24. a4 {[%emt 0:03:42]} Kg7 {[%emt 0:08:53]} 25. Nfd4 {[%emt 0:07:10]} Bxb5 {[%emt 0:03:09]} 26. axb5 {[%emt 0:03:14]} Qd6 {[%emt 0:05:22]} 27. Qg4 {[%emt 0:09:34]} f5 {[%emt 0:00:08]} 28. Qe2 {[%emt 0:00:21]} Bg5 {[%emt 0:00:46]} 29. Rd3 {[%emt 0:03:28]} Bf6 {[%emt 0:02:25]} 30. hxg6 {[%emt 0:01:52]} hxg6 {[%emt 0:00:16]} 31. Nxf5+ {[%emt 0:10:26]} gxf5 {[%emt 0:00:05]} 32. Rg3+ {[%emt 0:00:58]} Qxg3 {[%emt 0:00:09]} 33. fxg3 {[%emt 0:00:03]} Rc3 {[%emt 0:00:24]} 34. Qd2 {[%emt 0:00:01]} d4 {[%emt 0:01:47]} 35. g4 {[%emt 0:02:33]} d3 {[%emt 0:01:22]} 36. gxf5 {[%emt 0:05:00]} Bd4+ {[%emt 0:00:08]} 37. Kh2 {[%emt 0:00:06]} Rxf5 {[%emt 0:00:05]} 38. Re4 {[%emt 0:01:37]} Rh5+ {[%emt 0:03:27]} 39. Kg3 {[%emt 0:00:09]} Bf6 {[%emt 0:00:03]} 40. Rg4+ {[%emt 0:05:29]} Kf8 {[%emt 0:08:46]} 41. b6 {[%emt 1:02:58]} axb6 {[%emt 0:51:03]} 42. Rg6 {[%emt 0:00:30]} Rcc5 {[%emt 0:00:00]} 43. Qxd3 {[%emt 0:00:00]} Rcd5 {[%emt 0:00:00]} 44. Qe4 {[%emt 0:00:00]} Rhe5 {[%emt 0:00:00]} 45. Qf4 {[%emt 0:00:00]} Rg5+ {[%emt 0:00:00]} 46. Rxg5 {[%emt 0:00:00]} Rxg5+ {[%emt 0:00:00]} 47. Kf3 {[%emt 0:00:00]} Kg7 {[%emt 0:00:00]} 48. Qb4 {[%emt 0:00:00]} b5 {[%emt 0:00:00]} 49. Qd2 {[%emt 0:00:00]} Rf5+ {[%emt 0:00:00]} 50. Kg4 {[%emt 0:00:00]} Re5 {[%emt 0:00:00]} 51. Qd7 {[%emt 0:00:00]} Kg6 {[%emt 0:00:00]} 52. Qe8+ {[%emt 0:00:00]} Kh6 {[%emt 0:00:00]} 53. Kf4 {[%emt 0:00:00]} Rg5 {[%emt 0:00:00]} 54. Ke4 {[%emt 0:00:00]} Re5+ {[%emt 0:00:00]} 55. Kd3 {[%emt 0:00:00]} Kg5 {[%emt 0:00:00]} 56. Qc6 {[%emt 0:00:00]} Kf5 {[%emt 0:00:00]} 57. Kd2 {[%emt 0:00:00]} Kg5 {[%emt 0:00:00]} 58. Qf3 {[%emt 0:00:00]} Kg6 {[%emt 0:00:00]} 59. Kc2 {[%emt 0:00:00]} Kg5 {[%emt 0:00:00]} 60. Qg3+ {[%emt 0:00:00]} Kf5 {[%emt 0:00:00]} 61. Qh3+ {[%emt 0:04:49]} Kg5 {[%emt 0:00:00]} 62. Qf3 {[%emt 0:00:36]} Kg6 {[%emt 0:00:00]} 63. Qg4+ {[%emt 0:00:16]} Kh6 {[%emt 0:00:00]} 64. Qg3 {[%emt 0:01:32]} Rh5 {[%emt 0:00:08]} 65. Qe3+ {[%emt 0:00:55]} Kg7 {[%emt 0:00:26]} 66. Qe1 {[%emt 0:01:56]} Rg5 {[%emt 0:01:10]} 67. Qf1 {[%emt 0:00:21]} Re5 {[%emt 0:11:07]} 68. Kb1 {[%emt 0:01:02]} Kf8 {[%emt 0:06:37]} 69. Ka2 {[%emt 0:07:15]} b4 {[%emt 0:00:18]} 70. Kb1 {[%emt 0:05:48]} Rxe6 {[%emt 0:00:36]} 71. Qf4 {[%emt 0:00:21]} Re1+ {[%emt 0:02:07]} 72. Kc2 {[%emt 0:00:16]} Re2+ {[%emt 0:00:03]} 73. Kd3 {[%emt 0:00:11]} Rxg2 {[%emt 0:00:06]} 74. Qxb4 {[%emt 0:00:06]} Rg3+ {[%emt 0:00:12]} 75. Ke2 {[%emt 0:00:03]} Be5 {[%emt 0:00:16]} 76. Qb7 {[%emt 0:00:37]} Rg6 {[%emt 0:06:17]} 77. Qe4 {[%emt 0:00:53]} Rg5 {[%emt 0:00:05]} 78. b4 {[%emt 0:01:43]} Bd6 {[%emt 0:00:18]} 79. Qc4 {[%emt 0:00:09]} Rg6 {[%emt 0:02:59]} 80. b5 {[%emt 0:00:24]} Bh2 {[%emt 0:00:36]} 81. Qc8+ {[%emt 0:02:28]} Kf7 {[%emt 0:00:33]} 82. Qf5+ {[%emt 0:01:10]} Kg7 {[%emt 0:00:05]} 83. Qe4 {[%emt 0:00:03]} Kf7 {[%emt 0:00:34]} 84. Qc4+ {[%emt 0:01:04]} Kf8 {[%emt 0:00:12]} 85. Qd3 {[%emt 0:02:04]} Re6+ {[%emt 0:00:43]} 86. Kf3 {[%emt 0:01:17]} Rf6+ {[%emt 0:00:05]} 87. Kg4 {[%emt 0:00:32]} Bc7 {[%emt 0:00:10]} 88. Qc4 {[%emt 0:01:06]} Rf4+ {[%emt 0:00:45]} 89. Qxf4+ {[%emt 0:00:04]} Bxf4 {[%emt 0:00:03]} 90. Kxf4 {[%emt 0:00:02]} Ke8 {[%emt 0:00:05]} 91. Ke5 {[%emt 0:00:02]} Kd7 {[%emt 0:00:04]} 92. b6 {[%emt 0:00:02]} Kc6 {[%emt 0:00:03]} 93. Ke6 {[%emt 0:00:02]} Kxb6 {[%emt 0:00:04]} 94. Kxe7 {[%emt 0:00:02]} 1/2-1/2

[Event "FIDE Chesscom Grand Swiss 2019"]
[Site "Douglas-Isle of Man"]
[Date "2019.10.15"]
[Round "6.5"]
[White "Ragger, Markus"]
[Black "Vocaturo, Daniele"]
[Result "1/2-1/2"]
[ECO "A84"]
[WhiteElo "2684"]
[BlackElo "2620"]
[Annotator "RC"]
[PlyCount "109"]
[EventDate "2019.10.10"]
[EventType "swiss"]
[EventCountry "GBR"]
[SourceTitle "playchess.com"]
[Source "ChessBase"]
[SourceQuality "1"]
[TimeControl "40/6000+30:20/3000+30:900+30"]

1. d4 {[%emt 0:00:00]} e6 {[%emt 0:00:06]} 2. c4 {[%emt 0:00:00]} d5 {[%emt 0:03:09]} 3. Nf3 {[%emt 0:00:03]} c6 {[%emt 0:01:21]} 4. e3 {[%emt 0:02:53]} Bd6 {[%emt 0:02:02]} 5. Bd3 {[%emt 0:00:25]} f5 {[%emt 0:01:14]} 6. b3 {[%emt 0:00:35]} Nf6 {[%emt 0:02:21]} 7. O-O {[%emt 0:00:17]} Qe7 {[%emt 0:00:53]} 8. Bb2 {[%emt 0:00:23]} O-O {[%emt 0:02:29]} 9. Nc3 {[%emt 0:00:12]} Ne4 {[%emt 0:04:15]} 10. Ne2 {[%emt 0:04:01]} Nd7 {[%emt 0:04:04]} 11. Rc1 {[%emt 0:05:02]} b6 {[%emt 0:04:02]} 12. cxd5 {[%emt 0:22:23]} cxd5 {[%emt 0:00:13]} 13. Ne5 {[%emt 0:00:05]} Bb7 {[%emt 0:02:57]} 14. Bb5 {[%emt 0:15:16]} Nxe5 {[%emt 0:05:54]} 15. dxe5 {[%emt 0:01:30]} Bc5 {[%emt 0:00:25]} 16. Bd4 {[%emt 0:13:15]} Rfc8 {[%emt 0:07:29]} 17. f3 {[%emt 0:04:00]} Ng5 {[%emt 0:00:19]} 18. Qd2 {[%emt 0:00:32]} a5 {[%emt 0:11:26]} 19. Rc2 {[%emt 0:04:26]} Bxd4 {[%emt 0:07:10]} 20. Rxc8+ {[%emt 0:07:29]} Rxc8 {[%emt 0:00:18]} 21. exd4 {[%emt 0:00:08]} Nf7 {[%emt 0:03:43]} 22. a3 {[%emt 0:03:18]} Nd8 {[%emt 0:12:06]} 23. b4 {[%emt 0:00:56]} axb4 {[%emt 0:01:23]} 24. Qxb4 {[%emt 0:01:57]} Qxb4 {[%emt 0:03:36]} 25. axb4 {[%emt 0:00:02]} Kf7 {[%emt 0:01:00]} 26. Kf2 {[%emt 0:01:42]} Ke7 {[%emt 0:05:17]} 27. Ke3 {[%emt 0:01:55]} Bc6 {[%emt 0:01:00]} 28. Rc1 {[%emt 0:04:26]} Bd7 {[%emt 0:02:32]} 29. Rxc8 {[%emt 0:06:30]} Bxc8 {[%emt 0:00:05]} 30. Nc3 {[%emt 0:00:22]} Bd7 {[%emt 0:01:30]} 31. Be2 {[%emt 0:03:34]} Be8 {[%emt 0:08:37]} 32. b5 {[%emt 0:01:09]} Kd7 {[%emt 0:00:05]} 33. h4 {[%emt 0:00:33]} h6 {[%emt 0:02:15]} 34. Bd3 {[%emt 0:01:24]} Nf7 {[%emt 0:03:13]} 35. Ne2 {[%emt 0:00:24]} Nh8 {[%emt 0:01:33]} 36. Kf2 {[%emt 0:01:41]} Ng6 {[%emt 0:01:55]} 37. Kg3 {[%emt 0:00:46]} Ne7 {[%emt 0:01:37]} 38. Kh3 {[%emt 0:00:44]} Nc8 {[%emt 0:01:42]} 39. g4 {[%emt 0:01:14]} g6 {[%emt 0:02:03]} 40. Kg3 {[%emt 0:02:44]} fxg4 {[%emt 0:01:31]} 41. Kxg4 {[%emt 0:23:17]} Ne7 {[%emt 0:00:42]} 42. Nc3 {[%emt 0:02:02]} Nf5 {[%emt 0:02:09]} 43. Bxf5 {[%emt 0:04:06]} gxf5+ {[%emt 0:00:13]} 44. Kf4 {[%emt 0:00:07]} Kc7 {[%emt 0:00:58]} 45. Ke3 {[%emt 0:00:30]} Kd8 {[%emt 0:01:23]} 46. Kd2 {[%emt 0:01:15]} Kc7 {[%emt 0:01:25]} 47. Kc2 {[%emt 0:01:49]} Bh5 {[%emt 0:01:32]} 48. f4 {[%emt 0:00:04]} Be8 {[%emt 0:01:06]} 49. Kb3 {[%emt 0:00:02]} Kb7 {[%emt 0:00:53]} 50. Kb4 {[%emt 0:00:02]} Kc7 {[%emt 0:00:11]} 51. Na4 {[%emt 0:00:16]} Bd7 {[%emt 0:00:21]} 52. Nb2 {[%emt 0:00:32]} Be8 {[%emt 0:01:01]} 53. Nd3 {[%emt 0:00:13]} Bd7 {[%emt 0:00:32]} 54. Nb2 {[%emt 0:00:36]} Be8 {[%emt 0:00:33]} 55. Nd3 {[%emt 0:00:18]} 1/2-1/2

[Event "FIDE Chesscom Grand Swiss 2019"]
[Site "Douglas-Isle of Man"]
[Date "2019.10.15"]
[Round "6.6"]
[White "Aronian, Levon"]
[Black "Dreev, Aleksey"]
[Result "1-0"]
[ECO "B40"]
[WhiteElo "2758"]
[BlackElo "2662"]
[Annotator "RC"]
[PlyCount "51"]
[EventDate "2019.10.10"]
[EventType "swiss"]
[EventCountry "GBR"]
[SourceTitle "playchess.com"]
[Source "ChessBase"]
[SourceQuality "1"]
[TimeControl "40/6000+30:20/3000+30:900+30"]

1. e4 {[%emt 0:00:43]} c5 {[%emt 0:00:00]} 2. Nf3 {[%emt 0:00:08]} e6 {[%emt 0:00:00]} 3. g3 {[%emt 0:00:51]} d5 {[%emt 0:02:18]} 4. exd5 {[%emt 0:00:21]} exd5 {[%emt 0:00:05]} 5. Bg2 {[%emt 0:01:01]} Qe7+ {[%emt 0:01:33]} 6. Kf1 {[%emt 0:03:44]} Nc6 {[%emt 0:01:23]} 7. d4 {[%emt 0:01:24]} Qd8 {[%emt 0:02:12]} 8. c4 {[%emt 0:08:05]} dxc4 {[%emt 0:11:25]} 9. d5 {[%emt 0:04:17]} Nb4 {[%emt 0:18:53]} 10. Nc3 {[%emt 0:00:31]} Nf6 {[%emt 0:03:59]} 11. Ne5 {[%emt 0:17:01]} Bd6 {[%emt 0:01:40]} 12. Nxc4 {[%emt 0:01:19]} Bf5 {[%emt 0:02:10]} 13. Ne3 {[%emt 0:09:16]} Bg6 {[%emt 0:06:33]} 14. a3 {[%emt 0:10:17]} Nd3 {[%emt 0:00:50]} 15. f4 {[%emt 0:00:04]} O-O {[%emt 0:12:18]} 16. f5 {[%emt 0:01:04]} c4 {[%emt 0:00:20]} 17. fxg6 {[%emt 0:01:32]} fxg6 {[%emt 0:01:43]} 18. Bf3 {[%emt 0:00:15]} Nd7 {[%emt 0:19:49]} 19. Kg2 {[%emt 0:09:30]} N7e5 {[%emt 0:00:37]} 20. Nxc4 {[%emt 0:00:21]} Rxf3 {[%emt 0:05:50]} 21. Nxe5 {[%emt 0:00:05]} Rf2+ {[%emt 0:05:01]} 22. Kg1 {[%emt 0:00:03]} Qb6 {[%emt 0:01:54]} 23. Be3 {[%emt 0:00:09]} Qxb2 {[%emt 0:10:21]} 24. Nxd3 {[%emt 0:00:06]} Rg2+ {[%emt 0:00:07]} 25. Kf1 {[%emt 0:00:04]} Rf8+ {[%emt 0:00:27]} 26. Bf4 {[%emt 0:00:04]} 1-0